lending/lending_fUSD_20240603
["ID","MTS","AMOUNT","RATE_DAILY","PERIOD"]
[328432476,1717383066311,-13207.0,0.00030958,4]
[328432477,1717383066320,-500.0,0.00030958,4]
[328432478,1717383066329,-546.85,0.00030958,4]
[328432479,1717383066339,-500.0,0.00030958,4]
[328432480,1717383066348,-1279.96,0.00030958,4]
[328432481,1717383066357,-4969.37,0.00030958,4]
[328432482,1717383066367,-1423.72,0.00030958,4]
[328432483,1717383066379,-2760.93,0.00030958,4]
[328432484,1717383066389,-1024.88,0.00030958,4]
[328432485,1717383066399,-1072.92,0.00030958,4]
[328432486,1717383066408,-2917.33,0.00030958,4]
[328432487,1717383066418,-500.0,0.00030958,4]
[328432488,1717383066427,-679.51,0.00030958,4]
[328432489,1717383066437,-2436.39,0.00030958,4]
[328432490,1717383066447,-500.0,0.00030958,4]
[328432491,1717383066463,-500.0,0.00030958,4]
[328432492,1717383066472,-1201.12,0.00030958,4]
[328432493,1717383066482,-2922.52,0.00030958,4]
[328432494,1717383066492,-1894.74,0.00030958,4]
[328432495,1717383066501,-4358.46,0.00030958,4]
[328432496,1717383066510,-500.0,0.00030958,4]
[328432497,1717383066520,-500.0,0.00030958,4]
[328432498,1717383066530,-629.95536942,0.00030958,4]
[328432499,1717383066540,-2223.58,0.00030958,4]
[328432500,1717383066550,-500.0,0.00030958,4]
[328432501,1717383066559,-988.38,0.00030958,4]
[328432502,1717383066568,-500.0,0.00030958,4]
[328432503,1717383066578,-500.0,0.00030958,4]
[328432504,1717383066589,-1505.63,0.00030958,4]
[328432505,1717383066600,-500.0,0.00030958,4]
[328432506,1717383066610,-500.0,0.00030958,4]
[328432507,1717383066620,-788.0,0.00030958,4]
[328432508,1717383066631,-500.0,0.00030958,4]
[328432509,1717383066640,-1511.7,0.00030958,4]
[328432510,1717383066651,-2240.68,0.00030958,4]
[328432511,1717383066662,-9500.56,0.00030958,4]
[328432512,1717383066672,-500.0,0.00030958,4]
[328432513,1717383066682,-1823.94,0.00030958,4]
[328432514,1717383066692,-948.87,0.00030958,4]
[328432515,1717383066703,-500.0,0.00030958,4]
[328432516,1717383066712,-500.0,0.00030958,4]
[328432517,1717383066722,-634.58,0.00030958,4]
[328432518,1717383066731,-2799.18,0.00030958,4]
[328432519,1717383066740,-1694.14,0.00030958,4]
[328432520,1717383066750,-500.0,0.00030958,4]
[328432521,1717383066760,-500.0,0.00030958,4]
[328432522,1717383066770,-500.0,0.00030958,4]
[328432523,1717383066780,-2135.27,0.00030958,4]
[328432524,1717383066789,-3787.22,0.00030958,4]
[328432525,1717383066799,-1334.16,0.00030958,4]
[328432526,1717383066808,-500.0,0.00030958,4]
[328432527,1717383066817,-775.78,0.00030958,4]
[328432528,1717383066827,-1375.03,0.00030958,4]
[328432529,1717383066836,-1464.67,0.00030958,4]
[328432530,1717383066845,-500.0,0.00030958,4]
[328432531,1717383066855,-1131.19,0.00030958,4]
[328432532,1717383066864,-500.0,0.00030958,4]
[328432533,1717383066874,-839.92,0.00030958,4]
[328432534,1717383066885,-500.0,0.00030958,4]
[328432535,1717383066894,-713.57,0.00030958,4]
[328432536,1717383066904,-1716.06,0.00030958,4]
[328432537,1717383066914,-500.0,0.00030958,4]
[328432538,1717383066924,-2373.26,0.00030958,4]
[328432539,1717383066934,-2354.41,0.00030958,4]
[328432540,1717383066945,-660.76,0.00030958,4]
[328432541,1717383066953,-3082.36,0.00030958,4]
[328432542,1717383066963,-500.0,0.00030958,4]
[328432543,1717383066972,-500.0,0.00030958,4]
[328432544,1717383066981,-527.38,0.00030958,4]
[328432545,1717383066991,-500.0,0.00030958,4]
[328432546,1717383067000,-500.0,0.00030958,4]
[328432547,1717383067010,-500.0,0.00030958,4]
[328432548,1717383067020,-500.0,0.00030958,4]
[328432549,1717383067029,-1592.2,0.00030958,4]
[328432550,1717383067039,-523.56568668,0.00030958,4]
[328432551,1717383067049,-3681.53,0.00030958,4]
[328432552,1717383067058,-448.25192196,0.00030958,4]
[328432553,1717383067068,-500.0,0.00030958,4]
[328432554,1717383067078,-3723.56,0.00030958,4]
[328432555,1717383067088,-1351.86,0.00030958,4]
[328432556,1717383067098,-1259.91,0.00030958,4]
[328432557,1717383067108,-500.0,0.00030958,4]
[328432558,1717383067118,-1013.01,0.00030958,4]
[328432559,1717383067128,-500.0,0.00030958,4]
[328432560,1717383067139,-500.0,0.00030958,4]
[328432561,1717383067148,-5548.27,0.00030958,4]
[328432562,1717383067159,-500.0,0.00030958,4]
[328432563,1717383067168,-500.0,0.00030958,4]
[328432564,1717383067179,-10336.33,0.00030958,4]
[328432565,1717383067190,-500.0,0.00030958,4]
[328432566,1717383067202,-500.0,0.00030958,4]
[328432567,1717383067213,-1388.53,0.00030958,4]
[328432568,1717383067222,-1836.73,0.00030958,4]
[328432569,1717383067231,-500.0,0.00030958,4]
[328432570,1717383067241,-575.3,0.00030958,4]
[328432571,1717383067250,-500.0,0.00030958,4]
[328432572,1717383067260,-500.0,0.00030958,4]
[328432573,1717383067270,-3790.28,0.00030958,4]
[328432574,1717383067281,-625.21,0.00030958,4]
[328432575,1717383067290,-154.20396715,0.00030977,7]
[328432576,1717383067300,-78663.0,0.00031,2]
[328432577,1717383067309,-235.10592553,0.00031,4]
[328432578,1717383067321,-550.97767232,0.00031,4]
[328432579,1717383067332,-725.99294753,0.00031,14]
[328432580,1717383067342,-276.63807817,0.00031,2]
[328432581,1717383067351,-155.625457,0.00031,2]
[328432582,1717383067361,-155.0921787,0.00031,4]
[328432583,1717383067371,-2338.7238539,0.00031,4]
[328432584,1717383067389,-4137.81869522,0.00031,4]
[328432585,1717383067399,-686.1864328,0.00031,4]
[328432586,1717383067409,-1400.0,0.00031,2]
[328432587,1717383067421,-686.1864328,0.00031,4]
[328432588,1717383067431,-3712.752864,0.00031,2]
[328432589,1717383067441,-202.891433,0.00031,3]
[328432590,1717383067453,-2508.402079,0.00031,5]
[328432591,1717383067464,-275.5,0.00031,8]
[328432592,1717383067475,-7449.53,0.00031015,5]
[328432593,1717383067484,-154.8446992,0.00031015,7]
[328432594,1717383067495,-157.14383776,0.00031037,7]
[328432595,1717383067504,-7431.17,0.00031095,5]
[328432596,1717383067514,-157.14383776,0.00031099,7]
[328432597,1717383067524,-150.0,0.000311,6]
[328432598,1717383067534,-150.0,0.000311,6]
[328432599,1717383067544,-170.4830861,0.00031106,7]
[328432600,1717383067553,-7414.11,0.00031121,5]
[328432601,1717383067562,-155.20951973,0.00031129,4]
[328432602,1717383067572,-182.0335277,0.00031129,4]
[328432603,1717383067581,-155.58447713,0.00031149,7]
[328432604,1717383067592,-157.46797257,0.00031151,30]
[328432605,1717383067601,-7237.4,0.00031151,5]
[328432606,1717383067613,-7460.96,0.00031185,5]
[328432607,1717383067623,-9968.2697556,0.0003119,2]
[328432608,1717383067632,-2007.6517527,0.0003119,2]
[328432609,1717383067642,-56752.4005048,0.0003119,2]
[328432610,1717383067651,-170.4830861,0.00031214,7]
[328432611,1717383067661,-3143.75580511,0.00031217,2]
[328432612,1717383067670,-7212.16,0.00031226,5]
[328432613,1717383067681,-500.0,0.00031232,4]
[328432614,1717383067692,-500.0,0.00031232,4]
[328432615,1717383067702,-500.0,0.00031232,4]
[328432616,1717383067712,-500.0,0.00031232,4]
[328432617,1717383067721,-500.0,0.00031232,4]
[328432618,1717383067731,-500.0,0.00031232,4]
[328432619,1717383067740,-500.0,0.00031232,4]
[328432620,1717383067750,-500.0,0.00031232,4]
[328432621,1717383067761,-280.33007485,0.00031232,4]
[328432622,1717383067770,-500.0,0.00031232,4]
[328432623,1717383067780,-500.0,0.00031232,4]
[328432624,1717383067789,-500.0,0.00031232,4]
[328432625,1717383067799,-500.0,0.00031232,4]
[328432626,1717383067809,-614.49,0.00031232,4]
[328432627,1717383067818,-500.0,0.00031232,4]
[328432628,1717383067828,-500.0,0.00031232,4]
[328432629,1717383067838,-500.0,0.00031232,4]
[328432630,1717383067848,-500.0,0.00031232,4]
[328432631,1717383067858,-500.0,0.00031232,4]
[328432632,1717383067867,-500.0,0.00031232,4]
[328432633,1717383067876,-730.39,0.00031232,4]
[328432634,1717383067886,-596.12,0.00031232,4]
[328432635,1717383067896,-500.0,0.00031232,4]
[328432636,1717383067905,-500.0,0.00031232,4]
[328432637,1717383067915,-500.0,0.00031232,4]
[328432638,1717383067924,-500.0,0.00031232,4]
[328432639,1717383067934,-500.0,0.00031232,4]
[328432640,1717383067944,-500.0,0.00031232,4]
[328432641,1717383067953,-500.0,0.00031232,4]
[328432642,1717383067962,-936.75,0.00031232,4]
[328432643,1717383067972,-500.0,0.00031232,4]
[328432644,1717383067981,-1187.66,0.00031232,4]
[328432645,1717383067991,-500.0,0.00031232,4]
[328432646,1717383068000,-500.0,0.00031232,4]
[328432647,1717383068010,-1818.86,0.00031232,4]
[328432648,1717383068019,-500.0,0.00031232,4]
[328432649,1717383068028,-500.0,0.00031232,4]
[328432650,1717383068038,-197.84958682,0.00031232,4]
[328432651,1717383068047,-500.0,0.00031232,4]
[328432652,1717383068057,-500.0,0.00031232,4]
[328432653,1717383068066,-500.0,0.00031232,4]
[328432654,1717383068076,-500.0,0.00031232,4]
[328432655,1717383068085,-500.0,0.00031232,4]
[328432656,1717383068095,-500.0,0.00031232,4]
[328432657,1717383068104,-500.0,0.00031232,4]
[328432658,1717383068113,-500.0,0.00031232,4]
[328432659,1717383068123,-500.0,0.00031232,4]
[328432660,1717383068132,-500.0,0.00031232,4]
[328432661,1717383068141,-156.47644106,0.00031232,4]
[328432662,1717383068151,-500.0,0.00031232,4]
[328432663,1717383068160,-272.55594484,0.00031232,4]
[328432664,1717383068169,-644.88,0.00031232,4]
[328432665,1717383068179,-631.89,0.00031232,4]
[328432666,1717383068188,-500.0,0.00031232,4]
[328432667,1717383068198,-500.0,0.00031232,4]
[328432668,1717383068207,-500.0,0.00031232,4]
[328432669,1717383068217,-562.20257727,0.00031232,4]
[328432670,1717383068226,-500.0,0.00031232,4]
[328432671,1717383068236,-500.0,0.00031232,4]
[328432672,1717383068245,-500.0,0.00031232,4]
[328432673,1717383068255,-538.83,0.00031232,4]
[328432674,1717383068264,-500.0,0.00031232,4]
[328432675,1717383068274,-500.0,0.00031232,4]
[328432676,1717383068283,-500.0,0.00031232,4]
[328432677,1717383068293,-500.0,0.00031232,4]
[328432678,1717383068302,-500.0,0.00031232,4]
[328432679,1717383068311,-1871.37,0.00031232,4]
[328432680,1717383068321,-500.0,0.00031232,4]
[328432681,1717383068331,-500.0,0.00031232,4]
[328432682,1717383068340,-712.74,0.00031232,4]
[328432683,1717383068350,-613.85,0.00031232,4]
[328432684,1717383068359,-705.41,0.00031232,4]
[328432685,1717383068369,-500.0,0.00031232,4]
[328432686,1717383068383,-500.0,0.00031232,4]
[328432687,1717383068393,-500.0,0.00031232,4]
[328432688,1717383068402,-972.45,0.00031232,4]
[328432689,1717383068412,-1291.57,0.00031232,4]
[328432690,1717383068423,-500.0,0.00031232,4]
[328432691,1717383068433,-500.0,0.00031232,4]
[328432692,1717383068443,-514.76,0.00031232,4]
[328432693,1717383068620,-745.06,0.00031232,4]
[328432694,1717383068630,-615.90641178,0.00031232,4]
[328432695,1717383068639,-500.0,0.00031232,4]
[328432696,1717383068648,-500.0,0.00031232,4]
[328432697,1717383068658,-500.0,0.00031232,4]
[328432698,1717383068668,-500.0,0.00031232,4]
[328432699,1717383068678,-501.54,0.00031232,4]
[328432700,1717383068687,-500.0,0.00031232,4]
[328432701,1717383068699,-500.0,0.00031232,4]
[328432702,1717383068708,-586.3,0.00031232,4]
[328432703,1717383068717,-500.0,0.00031232,4]
[328432704,1717383068726,-500.0,0.00031232,4]
[328432705,1717383068735,-500.0,0.00031232,4]
[328432706,1717383068744,-500.0,0.00031232,4]
[328432707,1717383068754,-647.05,0.00031232,4]
[328432708,1717383068763,-705.88,0.00031232,4]
[328432709,1717383068772,-534.43171311,0.00031232,4]
[328432710,1717383068781,-500.0,0.00031232,4]
[328432711,1717383068791,-500.0,0.00031232,4]
[328432712,1717383068800,-500.0,0.00031232,4]
[328432713,1717383068809,-503.06,0.00031232,4]
[328432714,1717383068819,-500.0,0.00031232,4]
[328432715,1717383068829,-510.44,0.00031232,4]
[328432716,1717383068838,-500.0,0.00031232,4]
[328432717,1717383068849,-500.0,0.00031232,4]
[328432718,1717383068858,-553.73,0.00031232,4]
[328432719,1717383068867,-500.0,0.00031232,4]
[328432720,1717383068876,-825.33,0.00031232,4]
[328432721,1717383068885,-500.0,0.00031232,4]
[328432722,1717383068894,-633.07,0.00031232,4]
[328432723,1717383068904,-500.0,0.00031232,4]
[328432724,1717383068913,-500.0,0.00031232,4]
[328432725,1717383068922,-500.0,0.00031232,4]
[328432726,1717383068931,-500.0,0.00031232,4]
[328432727,1717383068941,-623.31,0.00031232,4]
[328432728,1717383068951,-500.0,0.00031232,4]
[328432729,1717383068961,-500.0,0.00031232,4]
[328432730,1717383068970,-500.0,0.00031232,4]
[328432731,1717383068979,-777.94,0.00031232,4]
[328432732,1717383068988,-500.0,0.00031232,4]
[328432733,1717383068998,-500.0,0.00031232,4]
[328432734,1717383069007,-500.0,0.00031232,4]
[328432735,1717383069016,-557.82,0.00031232,4]
[328432736,1717383069026,-500.0,0.00031232,4]
[328432737,1717383069035,-653.45,0.00031232,4]
[328432738,1717383069044,-500.0,0.00031232,4]
[328432739,1717383069053,-500.0,0.00031232,4]
[328432740,1717383069063,-500.0,0.00031232,4]
[328432741,1717383069072,-500.0,0.00031232,4]
[328432742,1717383069081,-500.0,0.00031232,4]
[328432743,1717383069090,-500.0,0.00031232,4]
[328432744,1717383069099,-500.0,0.00031232,4]
[328432745,1717383069108,-500.0,0.00031232,4]
[328432746,1717383069118,-500.0,0.00031232,4]
[328432747,1717383069127,-1208.65,0.00031232,4]
[328432748,1717383069136,-500.0,0.00031232,4]
[328432749,1717383069146,-500.0,0.00031232,4]
[328432750,1717383069155,-500.0,0.00031232,4]
[328432751,1717383069164,-500.0,0.00031232,4]
[328432752,1717383069173,-500.0,0.00031232,4]
[328432753,1717383069182,-500.0,0.00031232,4]
[328432754,1717383069191,-500.0,0.00031232,4]
[328432755,1717383069202,-500.0,0.00031232,4]
[328432756,1717383069211,-612.73,0.00031232,4]
[328432757,1717383069220,-500.0,0.00031232,4]
[328432758,1717383069230,-500.0,0.00031232,2]
[328432759,1717383069240,-500.0,0.00031232,4]
[328432760,1717383069249,-500.0,0.00031232,4]
[328432761,1717383069258,-500.0,0.00031232,4]
[328432762,1717383069267,-500.0,0.00031232,4]
[328432763,1717383069276,-500.0,0.00031232,4]
[328432764,1717383069285,-500.0,0.00031232,4]
[328432765,1717383069294,-858.8,0.00031232,4]
[328432766,1717383069303,-529.77,0.00031232,4]
[328432767,1717383069312,-474.72755626,0.00031232,4]
[328432768,1717383069321,-500.0,0.00031232,4]
[328432769,1717383069330,-572.15138091,0.00031232,4]
[328432770,1717383069340,-1286.79,0.00031232,4]
[328432771,1717383069349,-932.87,0.00031232,4]
[328432772,1717383069358,-586.22,0.00031232,4]
[328432773,1717383069368,-500.0,0.00031232,4]
[328432774,1717383069380,-547.01630492,0.00031232,4]
[328432775,1717383069389,-500.0,0.00031232,4]
[328432776,1717383069398,-500.0,0.00031232,4]
[328432777,1717383069408,-500.0,0.00031232,4]
[328432778,1717383069418,-509.18,0.00031232,4]
[328432779,1717383069427,-4478.3,0.00031232,4]
[328432780,1717383069436,-500.0,0.00031232,4]
[328432781,1717383069445,-500.0,0.00031232,4]
[328432782,1717383069458,-541.91443609,0.00031232,4]
[328432783,1717383069467,-500.0,0.00031232,4]
[328432784,1717383069475,-500.0,0.00031232,4]
[328432785,1717383069484,-1170.51,0.00031232,4]
[328432786,1717383069493,-1037.41,0.00031232,4]
[328432787,1717383069502,-1019.2,0.00031232,4]
[328432788,1717383069511,-34960.64,0.00031232,4]
[328432789,1717383069520,-726.35,0.00031232,4]
[328432790,1717383069530,-1375.28,0.00031232,4]
[328432791,1717383069540,-1236.68,0.00031232,4]
[328432792,1717383069550,-1209.41,0.00031232,4]
[328432793,1717383069560,-749.6,0.00031232,4]
[328432794,1717383069569,-500.0,0.00031232,4]
[328432795,1717383069578,-500.0,0.00031232,4]
[328432796,1717383069588,-232.11610612,0.00031232,4]
[328432797,1717383069597,-14117.3,0.00031232,4]
[328432798,1717383069607,-500.0,0.00031232,4]
[328432799,1717383069616,-500.0,0.00031232,4]
[328432800,1717383069625,-500.0,0.00031232,4]
[328432801,1717383069635,-4225.42,0.00031232,4]
[328432802,1717383069644,-497.3122333,0.00031232,4]
[328432803,1717383069654,-500.0,0.00031232,4]
[328432804,1717383069663,-500.0,0.00031232,4]
[328432805,1717383069672,-203.12512067,0.00031232,4]
[328432806,1717383069681,-500.0,0.00031232,4]
[328432807,1717383069690,-2343.51,0.00031232,4]
[328432808,1717383069700,-500.0,0.00031232,4]
[328432809,1717383069709,-1874.55,0.00031232,4]
[328432810,1717383069718,-500.0,0.00031232,4]
[328432811,1717383069728,-500.0,0.00031232,4]
[328432812,1717383069737,-1355.02,0.00031232,4]
[328432813,1717383069746,-500.0,0.00031232,4]
[328432814,1717383069755,-500.0,0.00031232,4]
[328432815,1717383069765,-500.0,0.00031232,4]
[328432816,1717383069774,-500.0,0.00031232,4]
[328432817,1717383069783,-500.0,0.00031232,4]
[328432818,1717383069792,-838.43,0.00031232,4]
[328432819,1717383069801,-500.0,0.00031232,4]
[328432820,1717383069811,-1859.23,0.00031232,4]
[328432821,1717383069821,-500.0,0.00031232,4]
[328432822,1717383069830,-500.0,0.00031232,4]
[328432823,1717383069840,-500.0,0.00031232,4]
[328432824,1717383069849,-500.0,0.00031232,4]
[328432825,1717383069858,-500.0,0.00031232,4]
[328432826,1717383069868,-968.14,0.00031232,4]
[328432827,1717383069877,-1216.93,0.00031232,4]
[328432828,1717383069886,-500.0,0.00031232,4]
[328432829,1717383069895,-732.47,0.00031232,4]
[328432830,1717383069905,-875.3,0.00031232,4]
[328432831,1717383069914,-814.06,0.00031232,4]
[328432832,1717383069923,-500.0,0.00031232,4]
[328432833,1717383069933,-500.0,0.00031232,4]
[328432834,1717383069942,-500.0,0.00031232,4]
[328432835,1717383069952,-500.0,0.00031232,4]
[328432836,1717383069961,-591.35,0.00031232,4]
[328432837,1717383069971,-500.0,0.00031232,4]
[328432838,1717383069980,-3062.26,0.00031232,4]
[328432839,1717383069989,-500.0,0.00031232,4]
[328432840,1717383069998,-695.63,0.00031232,4]
[328432841,1717383070007,-500.0,0.00031232,4]
[328432842,1717383070017,-2412.97,0.00031232,4]
[328432843,1717383070026,-3534.67,0.00031232,4]
[328432844,1717383070035,-2480.71,0.00031232,4]
[328432845,1717383070044,-500.0,0.00031232,4]
[328432846,1717383070053,-764.01,0.00031232,4]
[328432847,1717383070063,-800.8,0.00031232,4]
[328432848,1717383070072,-9189.46,0.00031232,4]
[328432849,1717383070081,-500.0,0.00031232,4]
[328432850,1717383070090,-2150.22,0.00031232,4]
[328432851,1717383070100,-500.0,0.00031232,4]
[328432852,1717383070109,-1982.04,0.00031232,4]
[328432853,1717383070118,-4186.6,0.00031232,4]
[328432854,1717383070127,-7160.23,0.00031232,4]
[328432855,1717383070136,-1583.32,0.00031232,4]
[328432856,1717383070146,-3511.0,0.00031232,4]
[328432857,1717383070154,-573.3,0.00031232,4]
[328432858,1717383070164,-500.0,0.00031232,4]
[328432859,1717383070173,-470.19318933,0.00031232,4]
[328432860,1717383070182,-500.0,0.00031232,4]
[328432861,1717383070191,-544.52873544,0.00031232,4]
[328432862,1717383070201,-1963.1,0.00031232,4]
[328432863,1717383070210,-500.0,0.00031232,4]
[328432864,1717383070219,-656.97,0.00031232,4]
[328432865,1717383070228,-500.0,0.00031232,4]
[328432866,1717383070237,-555.3249653,0.00031232,4]
[328432867,1717383070246,-527.74,0.00031232,4]
[328432868,1717383070255,-500.0,0.00031232,4]
[328432869,1717383070264,-500.0,0.00031232,4]
[328432870,1717383070274,-500.0,0.00031232,4]
[328432871,1717383070283,-622.95,0.00031232,4]
[328432872,1717383070292,-500.0,0.00031232,4]
[328432873,1717383070301,-500.0,0.00031232,4]
[328432874,1717383070310,-2897.65,0.00031232,4]
[328432875,1717383070320,-1723.41,0.00031232,4]
[328432876,1717383070329,-1703.68,0.00031232,4]
[328432877,1717383070339,-409.72764195,0.00031232,4]
[328432878,1717383070349,-500.0,0.00031232,4]
[328432879,1717383070358,-1487.14,0.00031232,4]
[328432880,1717383070367,-500.0,0.00031232,4]
[328432881,1717383070380,-500.0,0.00031232,4]
[328432882,1717383070389,-500.0,0.00031232,4]
[328432883,1717383070398,-1930.1,0.00031232,4]
[328432884,1717383070408,-500.0,0.00031232,4]
[328432885,1717383070418,-1201.29,0.00031232,4]
[328432886,1717383070428,-2217.54,0.00031232,4]
[328432887,1717383070436,-1608.51,0.00031232,4]
[328432888,1717383070446,-500.0,0.00031232,4]
[328432889,1717383070458,-500.0,0.00031232,4]
[328432890,1717383070467,-500.0,0.00031232,4]
[328432891,1717383070477,-500.0,0.00031232,4]
[328432892,1717383070487,-13207.0,0.00031232,4]
[328432893,1717383070496,-500.0,0.00031232,4]
[328432894,1717383070505,-546.85,0.00031232,4]
[328432895,1717383070515,-500.0,0.00031232,4]
[328432896,1717383070524,-1279.96,0.00031232,4]
[328432897,1717383070534,-4969.37,0.00031232,4]
[328432898,1717383070543,-1423.72,0.00031232,4]
[328432899,1717383070553,-2760.93,0.00031232,4]
[328432900,1717383070562,-1024.88,0.00031232,4]
[328432901,1717383070571,-1072.92,0.00031232,4]
[328432902,1717383070581,-2917.33,0.00031232,4]
[328432903,1717383070590,-500.0,0.00031232,4]
[328432904,1717383070599,-679.51,0.00031232,4]
[328432905,1717383070609,-2436.39,0.00031232,4]
[328432906,1717383070618,-500.0,0.00031232,4]
[328432907,1717383070628,-500.0,0.00031232,4]
[328432908,1717383070638,-1201.12,0.00031232,4]
[328432909,1717383070647,-2922.52,0.00031232,4]
[328432910,1717383070656,-1894.74,0.00031232,4]
[328432911,1717383070666,-4358.46,0.00031232,4]
[328432912,1717383070675,-500.0,0.00031232,4]
[328432913,1717383070685,-235.93134056,0.00031232,4]
[328432914,1717383070694,-2223.58,0.00031232,4]
[328432915,1717383070705,-500.0,0.00031232,4]
[328432916,1717383070713,-988.38,0.00031232,4]
[328432917,1717383070722,-500.0,0.00031232,4]
[328432918,1717383070732,-500.0,0.00031232,4]
[328432919,1717383070741,-1505.63,0.00031232,4]
[328432920,1717383070750,-500.0,0.00031232,4]
[328432921,1717383070760,-500.0,0.00031232,4]
[328432922,1717383070769,-788.0,0.00031232,4]
[328432923,1717383070778,-500.0,0.00031232,4]
[328432924,1717383070788,-1511.7,0.00031232,4]
[328432925,1717383070798,-2240.68,0.00031232,4]
[328432926,1717383070807,-500.0,0.00031232,4]
[328432927,1717383070816,-9500.56,0.00031232,4]
[328432928,1717383070825,-948.87,0.00031232,4]
[328432929,1717383070834,-1823.94,0.00031232,4]
[328432930,1717383070843,-500.0,0.00031232,4]
[328432931,1717383070852,-500.0,0.00031232,4]
[328432932,1717383070861,-634.58,0.00031232,4]
[328432933,1717383070871,-2799.18,0.00031232,4]
[328432934,1717383070880,-1694.14,0.00031232,4]
[328432935,1717383070890,-500.0,0.00031232,4]
[328432936,1717383070899,-500.0,0.00031232,4]
[328432937,1717383070909,-3787.22,0.00031232,4]
[328432938,1717383070918,-2135.27,0.00031232,4]
[328432939,1717383070927,-500.0,0.00031232,4]
[328432940,1717383070937,-1334.16,0.00031232,4]
[328432941,1717383070946,-500.0,0.00031232,4]
[328432942,1717383070956,-775.78,0.00031232,4]
[328432943,1717383070964,-1375.03,0.00031232,4]
[328432944,1717383070973,-1464.67,0.00031232,4]
[328432945,1717383070983,-500.0,0.00031232,4]
[328432946,1717383070992,-1131.19,0.00031232,4]
[328432947,1717383071001,-500.0,0.00031232,4]
[328432948,1717383071011,-839.92,0.00031232,4]
[328432949,1717383071020,-500.0,0.00031232,4]
[328432950,1717383071029,-713.57,0.00031232,4]
[328432951,1717383071038,-1716.06,0.00031232,4]
[328432952,1717383071049,-528.71540762,0.00031232,4]
[328432953,1717383071058,-2373.26,0.00031232,4]
[328432954,1717383071067,-2354.41,0.00031232,4]
[328432955,1717383071078,-660.76,0.00031232,4]
[328432956,1717383071087,-3082.36,0.00031232,4]
[328432957,1717383071098,-500.0,0.00031232,4]
[328432958,1717383071108,-500.0,0.00031232,4]
[328432959,1717383071118,-527.38,0.00031232,4]
[328432960,1717383071128,-500.0,0.00031232,4]
[328432961,1717383071138,-500.0,0.00031232,4]
[328432962,1717383071147,-500.0,0.00031232,4]
[328432963,1717383071155,-500.0,0.00031232,4]
[328432964,1717383071164,-1592.2,0.00031232,4]
[328432965,1717383071174,-3681.53,0.00031232,4]
[328432966,1717383071183,-624.4956311,0.00031232,4]
[328432967,1717383071192,-3723.56,0.00031232,4]
[328432968,1717383071201,-1351.86,0.00031232,4]
[328432969,1717383071211,-1259.91,0.00031232,4]
[328432970,1717383071220,-500.0,0.00031232,4]
[328432971,1717383071229,-1013.01,0.00031232,4]
[328432972,1717383071238,-500.0,0.00031232,4]
[328432973,1717383071247,-500.0,0.00031232,4]
[328432974,1717383071259,-5548.27,0.00031232,4]
[328432975,1717383071268,-500.0,0.00031232,4]